[Event "*** Titled Tuesday Blitz"]
[Site "Chess.com"]
[Date "2020.05.26"]
[Round "5"]
[White "LiamVrolijk"]
[Black "Abund"]
[Result "1-0"]
[WhiteElo "2783"]
[BlackElo "2603"]
[TimeControl "180+1"]
[EndTime "10:56:06 PDT"]
[Termination "LiamVrolijk won on time"]

1. c4 {[%clk 0:03:00.9]} 1... e5 {[%clk 0:02:49.6]} 2. g3 {[%clk 0:03:00.7]}
2... Nf6 {[%clk 0:02:47.9]} 3. Bg2 {[%clk 0:03:01]} 3... c6 {[%clk 0:02:47.7]}
4. d4 {[%clk 0:02:54.2]} 4... exd4 {[%clk 0:02:16.6]} 5. Qxd4 {[%clk 0:02:55.1]}
5... d5 {[%clk 0:02:16.8]} 6. Nf3 {[%clk 0:02:55.6]} 6... c5 {[%clk 0:02:03.6]}
7. Qd1 {[%clk 0:02:41.3]} 7... Be7 {[%clk 0:02:00.7]} 8. O-O {[%clk 0:02:31]}
8... d4 {[%clk 0:01:52.9]} 9. e3 {[%clk 0:02:27.1]} 9... Nc6 {[%clk 0:01:53.2]}
10. exd4 {[%clk 0:02:25]} 10... cxd4 {[%clk 0:01:53.5]} 11. b4 {[%clk
0:02:20.6]} 11... Nxb4 {[%clk 0:01:22.8]} 12. Nxd4 {[%clk 0:02:19.7]} 12... O-O
{[%clk 0:01:22.4]} 13. Be3 {[%clk 0:02:19]} 13... Ng4 {[%clk 0:01:19.6]} 14. Nc3
{[%clk 0:02:08.4]} 14... Nxe3 {[%clk 0:01:09.3]} 15. fxe3 {[%clk 0:02:09.3]}
15... Bc5 {[%clk 0:01:01.4]} 16. Qd2 {[%clk 0:02:02.6]} 16... Nc6 {[%clk
0:00:45.5]} 17. Nd5 {[%clk 0:01:54.8]} 17... Be6 {[%clk 0:00:42.7]} 18. Rad1
{[%clk 0:01:50.9]} 18... Rc8 {[%clk 0:00:33.7]} 19. Kh1 {[%clk 0:01:43]} 19...
Bxd5 {[%clk 0:00:20.7]} 20. Bxd5 {[%clk 0:01:41]} 20... Rc7 {[%clk 0:00:13.5]}
21. Nxc6 {[%clk 0:01:18.2]} 21... bxc6 {[%clk 0:00:13.5]} 22. Bxf7+ {[%clk
0:00:53.4]} 22... Rcxf7 {[%clk 0:00:12.9]} 23. Rxf7 {[%clk 0:00:53.2]} 23... Qe8
{[%clk 0:00:09.6]} 24. Rxf8+ {[%clk 0:00:51.1]} 24... Kxf8 {[%clk 0:00:08.2]}
25. Qd3 {[%clk 0:00:48.1]} 25... Bb6 {[%clk 0:00:04.3]} 26. Qxh7 {[%clk
0:00:24.9]} 26... Qxe3 {[%clk 0:00:03.1]} 27. Qf5+ {[%clk 0:00:22]} 27... Kg8
{[%clk 0:00:01.1]} 28. Rf1 {[%clk 0:00:22.9]} 1-0

[Event "*** Titled Tuesday Blitz"]
[Site "Chess.com"]
[Date "2020.05.26"]
[Round "5"]
[White "Norival"]
[Black "mishanick"]
[Result "0-1"]
[WhiteElo "2647"]
[BlackElo "2957"]
[TimeControl "180+1"]
[EndTime "10:56:07 PDT"]
[Termination "mishanick won by resignation"]

1. d4 {[%clk 0:03:00.9]} 1... Nf6 {[%clk 0:02:49.6]} 2. Nf3 {[%clk 0:02:59.4]}
2... d5 {[%clk 0:02:49.4]} 3. Bf4 {[%clk 0:02:57.6]} 3... c5 {[%clk 0:02:49.1]}
4. e3 {[%clk 0:02:57]} 4... Nc6 {[%clk 0:02:48.3]} 5. c3 {[%clk 0:02:57.3]} 5...
Qb6 {[%clk 0:02:47.4]} 6. Qc1 {[%clk 0:02:54.2]} 6... Bf5 {[%clk 0:02:46.2]} 7.
Be2 {[%clk 0:02:49.8]} 7... h6 {[%clk 0:02:44.8]} 8. O-O {[%clk 0:02:49]} 8...
e6 {[%clk 0:02:45.4]} 9. h3 {[%clk 0:02:48.9]} 9... Rc8 {[%clk 0:02:43.9]} 10.
a4 {[%clk 0:02:47.4]} 10... Be7 {[%clk 0:02:42.7]} 11. a5 {[%clk 0:02:39.5]}
11... Nxa5 {[%clk 0:02:14.5]} 12. dxc5 {[%clk 0:01:54]} 12... Bxc5 {[%clk
0:02:15.4]} 13. Nbd2 {[%clk 0:01:25.8]} 13... O-O {[%clk 0:02:09.2]} 14. Rxa5
{[%clk 0:01:08.4]} 14... Qxa5 {[%clk 0:01:57.3]} 15. b4 {[%clk 0:01:07.8]} 15...
Bxb4 {[%clk 0:01:27.1]} 16. cxb4 {[%clk 0:01:07.6]} 16... Rxc1 {[%clk
0:01:26.5]} 17. bxa5 {[%clk 0:01:06.8]} 17... Rxf1+ {[%clk 0:01:27.4]} 18. Bxf1
{[%clk 0:01:04.7]} 18... Rc8 {[%clk 0:01:28]} 19. Nd4 {[%clk 0:00:59.3]} 19...
Bg6 {[%clk 0:01:09.6]} 20. Nb5 {[%clk 0:00:44.2]} 20... Rc1 {[%clk 0:00:55]} 21.
f3 {[%clk 0:00:37.7]} 21... Bd3 {[%clk 0:00:53]} 22. Nxa7 {[%clk 0:00:31.4]}
22... Rd1 {[%clk 0:00:47.4]} 23. e4 {[%clk 0:00:31]} 23... dxe4 {[%clk
0:00:47.5]} 24. Kf2 {[%clk 0:00:30.8]} 24... Nd5 {[%clk 0:00:41.6]} 25. Be2
{[%clk 0:00:24.7]} 25... Ra1 {[%clk 0:00:22.9]} 26. Bxd3 {[%clk 0:00:20.2]}
26... exd3 {[%clk 0:00:22]} 27. Bd6 {[%clk 0:00:15.9]} 27... Rxa5 {[%clk
0:00:21.9]} 28. Nc8 {[%clk 0:00:16]} 28... Ra2 {[%clk 0:00:21.8]} 29. Ke1 {[%clk
0:00:15.2]} 29... Ra1+ {[%clk 0:00:21.8]} 30. Kf2 {[%clk 0:00:15.1]} 30... Rd1
{[%clk 0:00:22.4]} 31. Ne4 {[%clk 0:00:12.9]} 31... d2 {[%clk 0:00:20.7]} 0-1

[Event "*** Titled Tuesday Blitz"]
[Site "Chess.com"]
[Date "2020.05.26"]
[Round "5"]
[White "LedakovAlexandr"]
[Black "Justinz"]
[Result "0-1"]
[WhiteElo "2504"]
[BlackElo "2360"]
[TimeControl "180+1"]
[EndTime "10:56:08 PDT"]
[Termination "Justinz won on time"]

1. Nf3 {[%clk 0:03:00.9]} 1... Nf6 {[%clk 0:02:59.7]} 2. d4 {[%clk 0:03:01]}
2... e6 {[%clk 0:02:59.6]} 3. Bg5 {[%clk 0:03:00.6]} 3... c5 {[%clk 0:02:57.1]}
4. e3 {[%clk 0:02:59.6]} 4... d5 {[%clk 0:02:57]} 5. Nbd2 {[%clk 0:02:59.9]}
5... Be7 {[%clk 0:02:55]} 6. c3 {[%clk 0:02:59]} 6... Nbd7 {[%clk 0:02:54.9]} 7.
Bd3 {[%clk 0:02:58.7]} 7... b6 {[%clk 0:02:55]} 8. Ne5 {[%clk 0:02:57.9]} 8...
Nxe5 {[%clk 0:02:50.3]} 9. dxe5 {[%clk 0:02:58.8]} 9... Nd7 {[%clk 0:02:50.4]}
10. Bxe7 {[%clk 0:02:56.3]} 10... Qxe7 {[%clk 0:02:49.8]} 11. f4 {[%clk
0:02:56.9]} 11... Bb7 {[%clk 0:02:50]} 12. O-O {[%clk 0:02:57]} 12... O-O-O
{[%clk 0:02:49.7]} 13. Qe2 {[%clk 0:02:55]} 13... f6 {[%clk 0:02:44]} 14. exf6
{[%clk 0:02:54.8]} 14... Nxf6 {[%clk 0:02:42.9]} 15. e4 {[%clk 0:02:55.1]} 15...
d4 {[%clk 0:01:48.5]} 16. e5 {[%clk 0:02:41.5]} 16... Nd5 {[%clk 0:01:46.9]} 17.
cxd4 {[%clk 0:02:38.8]} 17... Nb4 {[%clk 0:01:46.8]} 18. Nf3 {[%clk 0:02:12.6]}
18... Kb8 {[%clk 0:01:35.1]} 19. Be4 {[%clk 0:01:56.8]} 19... Ba6 {[%clk
0:01:33.4]} 20. Qd2 {[%clk 0:01:48.8]} 20... Bxf1 {[%clk 0:01:32.9]} 21. Rxf1
{[%clk 0:01:49.7]} 21... Nd5 {[%clk 0:01:13.1]} 22. a3 {[%clk 0:01:41.1]} 22...
Rd7 {[%clk 0:01:11.4]} 23. f5 {[%clk 0:01:31.7]} 23... exf5 {[%clk 0:00:56.7]}
24. Bxf5 {[%clk 0:01:31.7]} 24... Rdd8 {[%clk 0:00:57.1]} 25. Be4 {[%clk
0:01:21.5]} 25... Rhe8 {[%clk 0:00:51.8]} 26. Kh1 {[%clk 0:01:17.3]} 26... h6
{[%clk 0:00:49]} 27. dxc5 {[%clk 0:00:43]} 27... Qxc5 {[%clk 0:00:48.8]} 28. Rc1
{[%clk 0:00:34.3]} 28... Qe3 {[%clk 0:00:48.8]} 29. Qxe3 {[%clk 0:00:14.6]}
29... Nxe3 {[%clk 0:00:49.7]} 30. Re1 {[%clk 0:00:14.9]} 30... Ng4 {[%clk
0:00:49.5]} 31. Bg6 {[%clk 0:00:10.8]} 31... Re7 {[%clk 0:00:45.9]} 32. Kg1
{[%clk 0:00:09]} 32... Rd5 {[%clk 0:00:33.7]} 33. Be4 {[%clk 0:00:04.5]} 33...
Nxe5 {[%clk 0:00:28.1]} 0-1

[Event "*** Titled Tuesday Blitz"]
[Site "Chess.com"]
[Date "2020.05.26"]
[Round "5"]
[White "cioxminator"]
[Black "DucksParadise"]
[Result "0-1"]
[WhiteElo "2408"]
[BlackElo "2056"]
[TimeControl "180+1"]
[EndTime "10:56:08 PDT"]
[Termination "DucksParadise won on time"]

1. e4 {[%clk 0:03:00.9]} 1... e6 {[%clk 0:02:47.1]} 2. d4 {[%clk 0:02:59.9]}
2... d5 {[%clk 0:02:46.9]} 3. Nd2 {[%clk 0:02:59.2]} 3... Nf6 {[%clk 0:02:44.9]}
4. e5 {[%clk 0:02:59.1]} 4... Nfd7 {[%clk 0:02:44.8]} 5. Bd3 {[%clk 0:02:59.6]}
5... c5 {[%clk 0:02:45.7]} 6. c3 {[%clk 0:02:59.5]} 6... Nc6 {[%clk 0:02:44.4]}
7. Ne2 {[%clk 0:02:59.2]} 7... cxd4 {[%clk 0:02:43.2]} 8. cxd4 {[%clk
0:02:58.6]} 8... f6 {[%clk 0:02:43.5]} 9. exf6 {[%clk 0:02:57.8]} 9... Nxf6
{[%clk 0:02:43.2]} 10. Nf3 {[%clk 0:02:56.2]} 10... Bd6 {[%clk 0:02:44.1]} 11.
O-O {[%clk 0:02:56]} 11... Qc7 {[%clk 0:02:40.5]} 12. g3 {[%clk 0:02:55.4]}
12... O-O {[%clk 0:02:37.1]} 13. Bf4 {[%clk 0:02:55.2]} 13... Ne4 {[%clk
0:02:36.8]} 14. Bxd6 {[%clk 0:02:36.1]} 14... Qxd6 {[%clk 0:02:37.7]} 15. Bxe4
{[%clk 0:02:17.1]} 15... dxe4 {[%clk 0:02:38.6]} 16. Ng5 {[%clk 0:02:17.3]}
16... Qd5 {[%clk 0:02:28.7]} 17. h4 {[%clk 0:01:43.9]} 17... Rd8 {[%clk
0:01:48.1]} 18. Nc3 {[%clk 0:01:20.2]} 18... Qf5 {[%clk 0:01:43.7]} 19. Ngxe4
{[%clk 0:00:32.6]} 19... Nxd4 {[%clk 0:01:38.6]} 20. Kg2 {[%clk 0:00:11.8]}
20... e5 {[%clk 0:01:35.4]} 21. Rh1 {[%clk 0:00:11.3]} 21... Be6 {[%clk
0:01:13.5]} 22. h5 {[%clk 0:00:06.5]} 22... Nb3 {[%clk 0:00:36.6]} 23. axb3
{[%clk 0:00:04.7]} 23... Rxd1 {[%clk 0:00:35.4]} 24. Raxd1 {[%clk 0:00:05.2]}
24... Bxb3 {[%clk 0:00:32.6]} 25. Rd2 {[%clk 0:00:05]} 25... Be6 {[%clk
0:00:22.3]} 26. h6 {[%clk 0:00:04.4]} 26... gxh6 {[%clk 0:00:21.7]} 27. Rxh6
{[%clk 0:00:03.3]} 27... Kg7 {[%clk 0:00:21.4]} 28. Rh4 {[%clk 0:00:02.7]} 28...
h5 {[%clk 0:00:20.1]} 29. Rd6 {[%clk 0:00:01.5]} 29... Rf8 {[%clk 0:00:18.9]}
0-1

[Event "*** Titled Tuesday Blitz"]
[Site "Chess.com"]
[Date "2020.05.26"]
[Round "5"]
[White "ArnieChipmunk"]
[Black "Charlottemillard17"]
[Result "1-0"]
[WhiteElo "2278"]
[BlackElo "1451"]
[TimeControl "180+1"]
[EndTime "10:56:09 PDT"]
[Termination "ArnieChipmunk won by checkmate"]

1. e4 {[%clk 0:03:00.8]} 1... e5 {[%clk 0:03:00]} 2. d4 {[%clk 0:03:00.3]} 2...
exd4 {[%clk 0:02:58]} 3. Qxd4 {[%clk 0:03:00.3]} 3... Nc6 {[%clk 0:02:58.2]} 4.
Qe3 {[%clk 0:03:00.4]} 4... b6 {[%clk 0:02:53.8]} 5. Nc3 {[%clk 0:03:00.2]} 5...
Bc5 {[%clk 0:02:52.4]} 6. Qg3 {[%clk 0:03:00.7]} 6... Qf6 {[%clk 0:02:48.5]} 7.
Nd5 {[%clk 0:02:58.6]} 7... Qd4 {[%clk 0:02:21.5]} 8. Nxc7+ {[%clk 0:02:52.3]}
8... Kd8 {[%clk 0:02:19.9]} 9. Nxa8 {[%clk 0:02:52.3]} 9... Qxe4+ {[%clk
0:02:16.9]} 10. Be2 {[%clk 0:02:46.4]} 10... Nd4 {[%clk 0:01:56]} 11. Qc7+
{[%clk 0:01:37.1]} 11... Ke7 {[%clk 0:01:49.6]} 12. Qxc8 {[%clk 0:01:26.3]}
12... Nxc2+ {[%clk 0:01:43.7]} 13. Kf1 {[%clk 0:01:21.8]} 13... Nxa1 {[%clk
0:01:39.3]} 14. Nf3 {[%clk 0:01:03.9]} 14... Qc2 {[%clk 0:01:32.4]} 15. Bg5+
{[%clk 0:00:56.2]} 15... f6 {[%clk 0:01:25]} 16. Nc7 {[%clk 0:00:47.1]} 16...
fxg5 {[%clk 0:00:54.5]} 17. Qe8+ {[%clk 0:00:43.5]} 17... Kd6 {[%clk 0:00:51.5]}
18. Nb5+ {[%clk 0:00:38.6]} 18... Kc6 {[%clk 0:00:43.2]} 19. Nbd4+ {[%clk
0:00:37.3]} 19... Bxd4 {[%clk 0:00:37.1]} 20. Nxd4+ {[%clk 0:00:38.1]} 20... Kd5
{[%clk 0:00:35.7]} 21. Nxc2 {[%clk 0:00:38.1]} 21... Nxc2 {[%clk 0:00:34.5]} 22.
Qf7+ {[%clk 0:00:37.3]} 22... Kd6 {[%clk 0:00:29.3]} 23. Qxg7 {[%clk 0:00:37]}
23... Nf6 {[%clk 0:00:26.9]} 24. Qxh8 {[%clk 0:00:36.6]} 24... Ne4 {[%clk
0:00:25.7]} 25. Qf8+ {[%clk 0:00:34.5]} 25... Kc7 {[%clk 0:00:24.4]} 26. Bd3
{[%clk 0:00:32.2]} 26... Nd2+ {[%clk 0:00:19.4]} 27. Ke2 {[%clk 0:00:31.7]}
27... Nb1 {[%clk 0:00:15.2]} 28. Bxc2 {[%clk 0:00:29.9]} 28... Na3 {[%clk
0:00:14.4]} 29. bxa3 {[%clk 0:00:29.7]} 29... h5 {[%clk 0:00:14.8]} 30. Rc1
{[%clk 0:00:29.4]} 30... h4 {[%clk 0:00:15.5]} 31. Bf5+ {[%clk 0:00:29.3]} 31...
Kb7 {[%clk 0:00:15.3]} 32. Qc8# {[%clk 0:00:28.8]} 1-0

[Event "*** Titled Tuesday Blitz"]
[Site "Chess.com"]
[Date "2020.05.26"]
[Round "5"]
[White "louis198"]
[Black "chessdjw"]
[Result "0-1"]
[WhiteElo "2502"]
[BlackElo "2711"]
[TimeControl "180+1"]
[EndTime "10:56:12 PDT"]
[Termination "chessdjw won by resignation"]

1. d4 {[%clk 0:03:00.2]} 1... Nf6 {[%clk 0:02:48.9]} 2. Bf4 {[%clk 0:02:59.5]}
2... d5 {[%clk 0:02:41.8]} 3. e3 {[%clk 0:02:59.3]} 3... e6 {[%clk 0:02:40.2]}
4. Bd3 {[%clk 0:02:57.2]} 4... c5 {[%clk 0:02:39.5]} 5. c3 {[%clk 0:02:57]} 5...
Nc6 {[%clk 0:02:36.8]} 6. Nd2 {[%clk 0:02:47.5]} 6... Qb6 {[%clk 0:02:34.5]} 7.
Qc2 {[%clk 0:02:40.4]} 7... Nh5 {[%clk 0:02:23.5]} 8. Bg3 {[%clk 0:02:38.9]}
8... Nxg3 {[%clk 0:02:18.5]} 9. hxg3 {[%clk 0:02:38.2]} 9... g6 {[%clk
0:02:17.5]} 10. Ngf3 {[%clk 0:02:32.3]} 10... Bg7 {[%clk 0:02:14.7]} 11. dxc5
{[%clk 0:01:32.9]} 11... Qxc5 {[%clk 0:02:12.9]} 12. e4 {[%clk 0:01:33.8]} 12...
O-O {[%clk 0:01:58]} 13. exd5 {[%clk 0:01:26.4]} 13... Qxd5 {[%clk 0:01:50]} 14.
Be4 {[%clk 0:01:12.4]} 14... Qc5 {[%clk 0:01:36.3]} 15. Nb3 {[%clk 0:01:03.8]}
15... Qb6 {[%clk 0:01:34.3]} 16. Ng5 {[%clk 0:00:58.1]} 16... h6 {[%clk
0:00:49.3]} 17. Bxg6 {[%clk 0:00:56.5]} 17... fxg6 {[%clk 0:00:49.1]} 18. Qxg6
{[%clk 0:00:56.6]} 18... Qxf2+ {[%clk 0:00:49]} 19. Kd1 {[%clk 0:00:54.7]} 19...
hxg5 {[%clk 0:00:29.5]} 20. Qh7+ {[%clk 0:00:33.7]} 20... Kf7 {[%clk 0:00:29.3]}
21. Qh5+ {[%clk 0:00:33.8]} 21... Ke7 {[%clk 0:00:26.8]} 22. Qxg5+ {[%clk
0:00:33]} 22... Qf6 {[%clk 0:00:23.5]} 23. Qc5+ {[%clk 0:00:27]} 23... Ke8
{[%clk 0:00:19.3]} 24. Nd2 {[%clk 0:00:23.9]} 24... Bd7 {[%clk 0:00:18.4]} 25.
Kc2 {[%clk 0:00:16.1]} 25... Qf5+ {[%clk 0:00:17.7]} 26. Qxf5 {[%clk 0:00:15.6]}
26... Rxf5 {[%clk 0:00:17.9]} 27. Rae1 {[%clk 0:00:16.5]} 27... Ke7 {[%clk
0:00:17.7]} 28. Rh7 {[%clk 0:00:16]} 28... Rg8 {[%clk 0:00:17.5]} 29. Ne4 {[%clk
0:00:15.9]} 29... Be8 {[%clk 0:00:16.9]} 30. g4 {[%clk 0:00:16.3]} 30... Rf4
{[%clk 0:00:13.8]} 31. Nc5 {[%clk 0:00:16]} 31... Bg6+ {[%clk 0:00:13.7]} 32.
Kb3 {[%clk 0:00:16.5]} 32... Bxh7 {[%clk 0:00:13.9]} 33. Rxe6+ {[%clk
0:00:17.4]} 33... Kf7 {[%clk 0:00:14.2]} 34. Rd6 {[%clk 0:00:17.2]} 34... Na5+
{[%clk 0:00:14.5]} 35. Ka3 {[%clk 0:00:16.2]} 35... Nc4+ {[%clk 0:00:14.9]} 0-1

[Event "*** Titled Tuesday Blitz"]
[Site "Chess.com"]
[Date "2020.05.26"]
[Round "5"]
[White "Enriquack"]
[Black "Shubinkirill2003"]
[Result "0-1"]
[WhiteElo "2339"]
[BlackElo "2610"]
[TimeControl "180+1"]
[EndTime "10:56:13 PDT"]
[Termination "Shubinkirill2003 won by resignation"]

1. e4 {[%clk 0:03:00.9]} 1... e6 {[%clk 0:03:00]} 2. d4 {[%clk 0:03:00.7]} 2...
d5 {[%clk 0:02:59.8]} 3. Nc3 {[%clk 0:03:01.3]} 3... Bb4 {[%clk 0:02:59]} 4. Ne2
{[%clk 0:03:01.5]} 4... Nc6 {[%clk 0:02:58.2]} 5. a3 {[%clk 0:03:00.9]} 5... Ba5
{[%clk 0:02:57.6]} 6. b4 {[%clk 0:02:52.8]} 6... Bb6 {[%clk 0:02:57.2]} 7. b5
{[%clk 0:02:48]} 7... Nb8 {[%clk 0:02:47.2]} 8. exd5 {[%clk 0:02:35.8]} 8...
exd5 {[%clk 0:02:45.4]} 9. Nf4 {[%clk 0:02:29.5]} 9... Ne7 {[%clk 0:02:36.5]}
10. Be3 {[%clk 0:02:24.1]} 10... O-O {[%clk 0:02:34.5]} 11. Be2 {[%clk 0:02:21]}
11... Ba5 {[%clk 0:02:30.3]} 12. Qd2 {[%clk 0:02:11.4]} 12... Nd7 {[%clk
0:02:29.3]} 13. O-O {[%clk 0:02:10]} 13... Nf6 {[%clk 0:02:28]} 14. f3 {[%clk
0:02:01.4]} 14... Re8 {[%clk 0:02:22.7]} 15. Bf2 {[%clk 0:02:01.2]} 15... Ng6
{[%clk 0:02:00.2]} 16. Nxg6 {[%clk 0:01:49.9]} 16... hxg6 {[%clk 0:02:01.1]} 17.
Bd3 {[%clk 0:01:37.4]} 17... Be6 {[%clk 0:01:46.9]} 18. Rab1 {[%clk 0:01:37.3]}
18... Qd7 {[%clk 0:01:42.8]} 19. Rb3 {[%clk 0:01:36.5]} 19... c5 {[%clk
0:01:18]} 20. bxc6 {[%clk 0:01:03.5]} 20... bxc6 {[%clk 0:01:18.9]} 21. Qc1
{[%clk 0:00:48.8]} 21... Bf5 {[%clk 0:01:04.2]} 22. Bxf5 {[%clk 0:00:48.6]}
22... Qxf5 {[%clk 0:01:03.6]} 23. Na4 {[%clk 0:00:48.2]} 23... Re2 {[%clk
0:00:59.4]} 24. c4 {[%clk 0:00:48.3]} 24... Rc2 {[%clk 0:00:49.7]} 25. Qb1
{[%clk 0:00:47]} 25... Rxc4 {[%clk 0:00:47.8]} 26. Rb8+ {[%clk 0:00:46.6]} 26...
Rxb8 {[%clk 0:00:42.6]} 27. Qxb8+ {[%clk 0:00:46.8]} 27... Kh7 {[%clk 0:00:43]}
28. Nc5 {[%clk 0:00:43.5]} 28... Bb6 {[%clk 0:00:38.8]} 29. Qb7 {[%clk
0:00:39.8]} 29... Nh5 {[%clk 0:00:26.5]} 30. Qxc6 {[%clk 0:00:34]} 30... Nf4
{[%clk 0:00:23.4]} 31. Qb5 {[%clk 0:00:22.5]} 31... Ne2+ {[%clk 0:00:19.9]} 32.
Kh1 {[%clk 0:00:22.5]} 32... Nxd4 {[%clk 0:00:19.7]} 33. Bxd4 {[%clk 0:00:17.1]}
33... Rxd4 {[%clk 0:00:20.6]} 34. Nd7 {[%clk 0:00:17.4]} 34... Rd2 {[%clk
0:00:18.3]} 35. Nxb6 {[%clk 0:00:17.1]} 35... axb6 {[%clk 0:00:15]} 36. Qxb6
{[%clk 0:00:17.2]} 36... Qd3 {[%clk 0:00:14.8]} 37. Qf2 {[%clk 0:00:16.3]} 37...
Rxf2 {[%clk 0:00:14]} 0-1

[Event "*** Titled Tuesday Blitz"]
[Site "Chess.com"]
[Date "2020.05.26"]
[Round "5"]
[White "PrinceMurad09"]
[Black "MacDaddyMac"]
[Result "1-0"]
[WhiteElo "2515"]
[BlackElo "2254"]
[TimeControl "180+1"]
[EndTime "10:56:14 PDT"]
[Termination "PrinceMurad09 won by resignation"]

1. e4 {[%clk 0:03:00.9]} 1... e6 {[%clk 0:03:00]} 2. d4 {[%clk 0:02:58]} 2... d5
{[%clk 0:03:00.9]} 3. Nd2 {[%clk 0:02:58.1]} 3... Nf6 {[%clk 0:02:59.4]} 4. e5
{[%clk 0:02:57.6]} 4... Nfd7 {[%clk 0:02:59.4]} 5. Bd3 {[%clk 0:02:57.9]} 5...
c5 {[%clk 0:02:57.6]} 6. c3 {[%clk 0:02:58.2]} 6... Nc6 {[%clk 0:02:57.6]} 7.
Ne2 {[%clk 0:02:58.1]} 7... Be7 {[%clk 0:02:46.9]} 8. O-O {[%clk 0:02:56.9]}
8... Qb6 {[%clk 0:02:43.7]} 9. Nf3 {[%clk 0:02:55.5]} 9... g5 {[%clk 0:02:43.8]}
10. dxc5 {[%clk 0:02:52]} 10... Nxc5 {[%clk 0:02:33.9]} 11. Bxg5 {[%clk
0:02:47]} 11... Bxg5 {[%clk 0:02:28.6]} 12. Nxg5 {[%clk 0:02:47.9]} 12... Nxd3
{[%clk 0:02:28.6]} 13. Qxd3 {[%clk 0:02:46.7]} 13... Nxe5 {[%clk 0:02:28.8]} 14.
Qd4 {[%clk 0:02:38.5]} 14... Qxd4 {[%clk 0:02:24.7]} 15. Nxd4 {[%clk 0:02:39.4]}
15... h6 {[%clk 0:02:22.4]} 16. Nh3 {[%clk 0:02:35.7]} 16... Ng6 {[%clk
0:02:14.6]} 17. f4 {[%clk 0:00:45.6]} 17... Bd7 {[%clk 0:02:02.4]} 18. Rae1
{[%clk 0:00:43.2]} 18... O-O-O {[%clk 0:01:41.3]} 19. f5 {[%clk 0:00:41.4]}
19... exf5 {[%clk 0:01:41.5]} 20. Nxf5 {[%clk 0:00:41.7]} 20... Kc7 {[%clk
0:01:36.5]} 21. Nd4 {[%clk 0:00:24.6]} 21... Bxh3 {[%clk 0:01:24.4]} 22. gxh3
{[%clk 0:00:24.2]} 22... Rd7 {[%clk 0:01:20.2]} 23. Rf5 {[%clk 0:00:21.5]} 23...
Rg8 {[%clk 0:01:13.7]} 24. Kh1 {[%clk 0:00:22]} 24... Kd8 {[%clk 0:00:50.5]} 25.
Rf6 {[%clk 0:00:22.2]} 25... Re8 {[%clk 0:00:48.9]} 26. Ref1 {[%clk 0:00:19.6]}
26... Ke7 {[%clk 0:00:39.4]} 27. Rxf7+ {[%clk 0:00:18.8]} 27... Kd8 {[%clk
0:00:38.5]} 28. R7f6 {[%clk 0:00:18.7]} 28... Ne5 {[%clk 0:00:23.2]} 29. Rxh6
{[%clk 0:00:18.2]} 29... Nd3 {[%clk 0:00:22.6]} 30. b3 {[%clk 0:00:14.5]} 30...
Rg7 {[%clk 0:00:15.7]} 31. Rd6+ {[%clk 0:00:13.3]} 31... Kc7 {[%clk 0:00:15.3]}
32. Rdf6 {[%clk 0:00:12.2]} 32... Kb8 {[%clk 0:00:13.2]} 33. R6f3 {[%clk
0:00:12.2]} 33... Ne5 {[%clk 0:00:11.5]} 34. Rf8 {[%clk 0:00:12.2]} 34... Rxf8
{[%clk 0:00:10]} 35. Rxf8+ {[%clk 0:00:13.1]} 35... Kc7 {[%clk 0:00:10.8]} 36.
Ne6+ {[%clk 0:00:13.8]} 1-0

[Event "*** Titled Tuesday Blitz"]
[Site "Chess.com"]
[Date "2020.05.26"]
[Round "5"]
[White "BabyFacedAssasin"]
[Black "amiralfio"]
[Result "1-0"]
[WhiteElo "2246"]
[BlackElo "2406"]
[TimeControl "180+1"]
[EndTime "10:56:14 PDT"]
[Termination "BabyFacedAssasin won by checkmate"]

1. e4 {[%clk 0:03:00.9]} 1... e5 {[%clk 0:02:55.7]} 2. Nf3 {[%clk 0:03:00.6]}
2... Nc6 {[%clk 0:02:49]} 3. Bb5 {[%clk 0:03:00.6]} 3... a6 {[%clk 0:02:47.5]}
4. Ba4 {[%clk 0:03:00.6]} 4... Nf6 {[%clk 0:02:47.2]} 5. d4 {[%clk 0:03:01.1]}
5... b5 {[%clk 0:02:37]} 6. dxe5 {[%clk 0:02:53.8]} 6... Nxe4 {[%clk 0:02:35]}
7. Bb3 {[%clk 0:02:49.1]} 7... Nc5 {[%clk 0:02:25.5]} 8. Nc3 {[%clk 0:02:22.1]}
8... Nxb3 {[%clk 0:01:46.6]} 9. axb3 {[%clk 0:02:19.5]} 9... Bc5 {[%clk
0:01:47.5]} 10. Ne4 {[%clk 0:02:02.1]} 10... Be7 {[%clk 0:01:44.3]} 11. O-O
{[%clk 0:01:42.6]} 11... O-O {[%clk 0:01:44.2]} 12. Re1 {[%clk 0:01:37.1]} 12...
Bb7 {[%clk 0:01:35.9]} 13. Bf4 {[%clk 0:01:24.2]} 13... Qc8 {[%clk 0:01:11]} 14.
Nfg5 {[%clk 0:00:57.6]} 14... h6 {[%clk 0:01:03]} 15. Qh5 {[%clk 0:00:45.3]}
15... hxg5 {[%clk 0:00:47.7]} 16. Bxg5 {[%clk 0:00:42.8]} 16... d5 {[%clk
0:00:26.6]} 17. Nf6+ {[%clk 0:00:25.6]} 17... Bxf6 {[%clk 0:00:11.5]} 18. Bxf6
{[%clk 0:00:24.4]} 18... Ne7 {[%clk 0:00:07.6]} 19. Bxe7 {[%clk 0:00:20.3]}
19... Qe6 {[%clk 0:00:05]} 20. Bxf8 {[%clk 0:00:15.6]} 20... Rxf8 {[%clk
0:00:04.6]} 21. f4 {[%clk 0:00:15.8]} 21... c5 {[%clk 0:00:03.8]} 22. f5 {[%clk
0:00:15.4]} 22... Qc6 {[%clk 0:00:04.4]} 23. f6 {[%clk 0:00:13]} 23... d4 {[%clk
0:00:05.3]} 24. Qg4 {[%clk 0:00:12.7]} 24... g6 {[%clk 0:00:04.7]} 25. Re2
{[%clk 0:00:10.8]} 25... Re8 {[%clk 0:00:03.8]} 26. Qg5 {[%clk 0:00:09.7]} 26...
Re6 {[%clk 0:00:01.9]} 27. Qh6 {[%clk 0:00:09.2]} 27... Rxf6 {[%clk 0:00:01.8]}
28. exf6 {[%clk 0:00:07.2]} 28... Qxg2+ {[%clk 0:00:02.7]} 29. Rxg2 {[%clk
0:00:06.9]} 29... Bf3 {[%clk 0:00:03.2]} 30. Qg7# {[%clk 0:00:07]} 1-0